Cogmind - Beta 12 @@@ ROGUE MODE // 2023.08.03 @ 10:38:57 Player: onura46 Result: Destroyed by G-34 Mercenary with Small Laser Performance ------------- Evolutions (1) 500 Regions Visited (3) 600 Robots Destroyed (41) 205 Value Destroyed (849) 849 Prototype IDs (4) 80 Alien Tech Used (0) 0 Bonus (11) 11 TOTAL SCORE: 2245 Bonus ------- High Alert Combat Kills 11 Cogmind --------- Core Integrity 0/400 Matter 265/300 Energy 111/125 System Corruption 2% Temperature Cool (8) Movement Rolling (95) Ox1 Location -9/Storage Parts ------- > --- POWER (1) -------- Light Ion Engine > --- PROPULSION (2) --- Wheel > --- UTILITY (4) ------ Medium Storage Unit Visual Processing Unit Propulsion Shielding > --- WEAPON (2) ------- Heavy EM Shotgun Mini Grenade Launcher > --- INVENTORY (10) --- Light Ion Engine Improved Ion Engine Heat Sink Large Storage Unit Seismic Detector Utility Shielding Hardened Light Armor Plating Beam Rifle Mini Grenade Launcher Mini Grenade Launcher Peak State ------------ > --- POWER ------------ Light Nuclear Core > --- PROPULSION ------- Light Treads > --- UTILITY ---------- Medium Storage Unit Visual Processing Unit Propulsion Shielding Light Armor Plating > --- WEAPON ----------- Heavy EM Shotgun Mini Grenade Launcher > --- INVENTORY -------- Light Ion Engine Heat Sink Heavy EM Shotgun Mini Grenade Launcher Mini Grenade Launcher [Rating: 16] Favorites ----------- Power Light Ion Engine Engine Light Ion Engine Power Core Light Nuclear Core Propulsion Light Treads Treads Light Treads Wheel Wheel Utility Medium Storage Unit Device Seismic Detector Storage Medium Storage Unit Processor Visual Processing Unit Protection Propulsion Shielding Weapon Mini Grenade Launcher Energy Gun Heavy EM Shotgun Energy Cannon Beam Cannon Launcher Mini Grenade Launcher Build | -11 -10 -9 -9 ------- Run | Jun Mat Mat Sto Slots Evolved 2 | . . 2 . Power . | . . . . Propulsion . | . . . . Utility 2 | . . 2 . Weapon . | . . . . Parts Attached 29 | 7 6 13 3 Power 5 | 1 1 2 1 Engine 3 | 1 1 . 1 Core 2 | . . 2 . Reactor . | . . . . Propulsion 5 | 2 1 1 1 Treads 4 | 2 1 1 . Leg . | . . . . Wheel 1 | . . . 1 Hover . | . . . . Flight . | . . . . Utility 10 | 2 2 6 . Device 5 | 1 1 3 . Storage 2 | 1 1 . . Processor 1 | . . 1 . Hackware . | . . . . Protection 2 | . . 2 . Artifact . | . . . . Weapon 9 | 2 2 4 1 Energy Gun 5 | 2 1 1 1 Energy Cannon 1 | . 1 . . Ballistic Gun . | . . . . Ballistic Cannon . | . . . . Launcher 3 | . . 3 . Special Weapon . | . . . . Impact Weapon . | . . . . Slashing Weapon . | . . . . Piercing Weapon . | . . . . Special Melee Weapon . | . . . . Unidentified Prototypes 1 | . . 1 . Parts Lost 16 | . 4 9 3 Power 2 | . . 2 . Propulsion 4 | . 2 1 1 Utility 6 | . 1 4 1 Weapon 4 | . 1 2 1 Highest Loss Streak 6 | . 3 6 1 To Critical Strikes 1 | . . 1 . Average Slot Usage (%) 88 | . 94 78 86 Engine 10 | . 14 3 9 Core 1 | . . 6 1 Treads 15 | . 22 10 7 Device 9 | . 13 13 . Storage 12 | . 14 11 11 Processor 3 | . . 2 11 Protection 8 | . . 10 22 Energy Gun 16 | . 22 8 10 Energy Cannon 3 | . 5 3 . Launcher 5 | . . 10 11 Naked Turns . | . . . . Heaviest Build 24 | 14 22 24 24 Greatest Support 40 | 40 40 20 20 Greatest Overweight (x) 7 | . 1 4 7 Average Overweight (x) . | . . . 1 Largest Inventory Capacity 10 | 8 10 10 10 Average Capacity 9 | 7 9 10 10 Most Carried 10 | 5 10 10 10 Average Carried 7 | 2 7 7 8 Final Capacity 10 | 8 10 10 10 Final Carried 10 | 3 10 5 10 Class Distribution -------------------- 100% | Mutant Dominant Class ---------------- Mutant | -10/Materials Mutant | -9/Materials Mutant | -9/Storage Resources | -11 -10 -9 -9 ----------- Run | Jun Mat Mat Sto Matter Collected 710 | 270 55 144 241 Remotely . | . . . . Salvage Created 992 | 102 416 233 241 Parts 81 | 6 30 20 25 Haulers Intercepted 1 | . 1 . . Recyclers Shooed . | . . . . Parts Field Recycled . | . . . . Retrieved Matter . | . . . . Parts Self-Destructed . | . . . . Prevented . | . . . . Kills | -11 -10 -9 -9 ------- Run | Jun Mat Mat Sto Combat Hostiles Destroyed 28 | . 11 10 7 Guns 13 | . 7 1 5 Cannons 3 | . 3 . . AOE 10 | . . 8 2 Classes Destroyed 9 | 2 5 1 1 Worker 4 | . 1 1 2 Builder 3 | . 1 1 1 Tunneler 2 | 1 . 1 . Hauler 1 | . 1 . . Recycler 2 | 1 1 . . Watcher 1 | . . . 1 Swarmer 13 | . 6 3 4 Grunt 11 | . 5 4 2 Sentry 4 | . . 3 1 Best Kill Streak 7 | 1 4 7 4 Combat Bots Only 7 | . 3 7 3 Max Kills in Single Turn 3 | 1 2 3 2 Gunslinging . | . . . . Exploded 2 | . . 2 1 Melee . | . . . . Uniques/NPCs Destroyed . | . . . . Combat | -11 -10 -9 -9 -------- Run | Jun Mat Mat Sto Damage Taken 1960 | . 713 896 351 Core 502 | . 101 334 67 Absorbed by Shields . | . . . . Redirected to Shielding 49 | . . 31 18 Core Remaining (%) 79 | 100 59 . . Volleys Fired 93 | 7 33 18 35 Largest 2 | 2 2 2 1 Hottest 125 | 90 125 125 50 Shots Fired 142 | 14 63 30 35 Gun 93 | 14 48 6 25 Cannon 19 | . 15 4 . Launcher 30 | . . 20 10 Special . | . . . . Kinetic . | . . . . Thermal 84 | 14 63 7 . Explosive 30 | . . 20 10 Electromagnetic 28 | . . 3 25 Robot Hit Streak 8 | 4 8 8 8 Robot Miss Streak 5 | 3 3 2 5 Penetration Max . | . . . . Secondary Targets 1 | . 1 . . Max Gunslinging Chain 1 | . 1 . . Shots Hit Robots 75 | 8 38 17 12 Core Hits 67 | 3 20 23 21 Critical Kills . | . . . . Critical Parts Destroyed . | . . . . Critical Strikes 2 | . 1 1 . Burn 2 | . 1 1 . Melee Attacks . | . . . . Impact . | . . . . Slashing . | . . . . Piercing . | . . . . Sneak Attacks . | . . . . Combat Hostiles . | . . . . Follow-up Attacks . | . . . . Damage Inflicted 2250 | 93 733 875 549 Guns 798 | 93 375 60 270 Cannons 243 | . 175 68 . Explosions 1194 | . 168 747 279 Melee . | . . . . Ramming 15 | . 15 . . Kinetic . | . . . . Thermal 724 | 93 550 81 . Explosive 1194 | . 168 747 279 Electromagnetic 317 | . . 47 270 Impact . | . . . . Slashing . | . . . . Piercing . | . . . . Highest Corruption 2 | . . . 2 Average Corruption 1 | . . . 1 Corruption Purged . | . . . . Corruption Blocked . | . . . . Effects 7 | . . . 7 Message Errors 2 | . . . 2 Matter Fused 1 | . . . 1 Heat Flow Errors 1 | . . . 1 Energy Discharges 1 | . . . 1 Data Loss (minor) 1 | . . . 1 Data Loss (major) 1 | . . . 1 Overload Shots . | . . . . Overflow Damage 44 | . 44 . . Projectiles . | . . . . Explosions 44 | . 44 . . Melee . | . . . . Knockbacks . | . . . . Impact . | . . . . Kinetic . | . . . . Secondary . | . . . . Self-Inflicted Damage 289 | . 186 103 . Shots 5 | . 2 3 . Rammed 5 | . 5 . . Targets Rammed 5 | . 5 . . Kicked . | . . . . Crushed . | . . . . Highest Temperature 295 | 120 295 163 161 Average Temperature 71 | 55 96 47 39 Received Heat Transfer 561 | . 153 288 120 Effects 3 | . 3 . . Interference 3 | . 3 . . Siege Activations . | . . . . Robots Corrupted . | . . . . Combat Hostiles . | . . . . Parts Fried . | . . . . Impact Corruptions . | . . . . Robots Melted 2 | . 1 1 . Combat Hostiles 2 | . 1 1 . Parts Melted 5 | . 4 1 . Heat Transferred 1893 | 236 1398 259 . Parts Sabotaged . | . . . . Parts Stolen . | . . . . Parts Stripped . | . . . . Power Chain Reactions . | . . . . Missiles Intercepted . | . . . . Alert | -11 -10 -9 -9 ------- Run | Jun Mat Mat Sto Peak Influence 423 | 10 183 423 230 Initial 93 | . 6 76 93 Average 127 | 4 72 274 151 Maximum Alert Level 2 | . . 2 1 Low Security (%) 77 | 100 100 29 66 Level 1 15 | . . 31 33 Level 2 6 | . . 38 . Level 3 . | . . . . Level 4 . | . . . . Level 5 . | . . . . High Security . | . . . . Max Security . | . . . . Squads Dispatched 3 | . 1 . 2 Investigation 2 | . 1 . 1 Extermination . | . . . . Reinforcement 1 | . . . 1 Assault . | . . . . Garrison . | . . . . Intercept . | . . . . Searches Triggered . | . . . . Construction Impeded . | . . . . Haulers Reinforced . | . . . . Active Scanning Responses . | . . . . Cargo Convoy Interrupts . | . . . . Stealth | -11 -10 -9 -9 --------- Run | Jun Mat Mat Sto Distress Signals 3 | . 1 1 1 Communications Jammed . | . . . . Distress Signals . | . . . . Times Spotted 47 | . 19 15 13 Peak Tracking Total 8 | . 4 8 4 Tactical Retreats 4 | . . 2 2 Traps | -11 -10 -9 -9 ------- Run | Jun Mat Mat Sto Traps Triggered 2 | . . . 2 Indirectly . | . . . . Trap Hack Attempts . | . . . . Triggered . | . . . . Disarmed . | . . . . Reprogrammed . | . . . . Reused . | . . . . Traps Extracted . | . . . . Installed . | . . . . Triggered . | . . . . Machines | -11 -10 -9 -9 ---------- Run | Jun Mat Mat Sto Machines Disabled 5 | . 2 2 1 Max in Single Turn 2 | . 2 1 1 Machines Repaired . | . . . . Machines Sabotaged . | . . . . Overloaded Fab Kills . | . . . . Hacking | -11 -10 -9 -9 --------- Run | Jun Mat Mat Sto Machines Accessed 9 | . 6 1 2 Terminals 9 | . 6 1 2 Fabricators . | . . . . Repair Stations . | . . . . Recycling Units . | . . . . Scanalyzers . | . . . . Garrison Access . | . . . . Total Hacks 17 | . 11 1 5 Successful 8 | . 5 1 2 Failed 9 | . 6 . 3 Catastrophic . | . . . . Database Lockouts . | . . . . Manual 2 | . 2 . . Terminals 17 | . 11 1 5 Fabricators . | . . . . Repair Stations . | . . . . Recycling Units . | . . . . Scanalyzers . | . . . . Garrison Access . | . . . . Terminal Hacks 8 | . 5 1 2 Record 2 | . 2 . . Prototype ID Bank 2 | . 1 . 1 Branch Access Points 1 | . 1 . . Locate Traps 2 | . 1 . 1 Hauler Manifests 1 | . . 1 . Fabricator Hacks . | . . . . Repair Station Hacks . | . . . . Recycling Unit Hacks . | . . . . Scanalyzer . | . . . . Garrison Access Hacks . | . . . . Unauthorized Hacks . | . . . . Terminals . | . . . . Fabricators . | . . . . Repair Stations . | . . . . Recycling Units . | . . . . Scanalyzers . | . . . . Garrison Access . | . . . . Data Cores Recovered . | . . . . Used . | . . . . Hacking Detections 5 | . 3 1 1 Full Trace Events 1 | . 1 . . Feedback Events . | . . . . Feedback Blocked . | . . . . Robot Schematics Acquired . | . . . . Robots Built . | . . . . Authchips . | . . . . Time . | . . . . Total Robot Build Rating . | . . . . Part Schematics Acquired . | . . . . Parts Built . | . . . . Authchips . | . . . . Time . | . . . . Total Part Build Rating . | . . . . Parts Repaired . | . . . . Time . | . . . . Parts Recycled . | . . . . Recycled Matter . | . . . . Retrieved Matter . | . . . . Retrieved Components . | . . . . Parts Scanalyzed . | . . . . Part Schematics Acquired . | . . . . Parts Damaged . | . . . . Bothacking | -11 -10 -9 -9 ------------ Run | Jun Mat Mat Sto Used RIF Installer . | . . . . Robots Hacked . | . . . . Non-combat . | . . . . Combat . | . . . . Robot Hacks Applied . | . . . . Relay Couplers Released . | . . . . Fabnet Peak Effective % . | . . . . Robots Rewired . | . . . . Allies Hacked . | . . . . Hacks Repelled . | . . . . Allies | -11 -10 -9 -9 -------- Run | Jun Mat Mat Sto Total Allies . | . . . . Largest Group . | . . . . Highest-Rated Group . | . . . . Highest-Rated Ally . | . . . . Total Orders . | . . . . Ally Attacks . | . . . . Total Damage . | . . . . Kills . | . . . . Allies Corrupted . | . . . . Allies Melted . | . . . . Intel | -11 -10 -9 -9 ------- Run | Jun Mat Mat Sto Robot Analysis Total . | . . . . Derelict Logs Recovered . | . . . . Drone Launches . | . . . . Drone Recoveries . | . . . . Exploration | -11 -10 -9 -9 ------------- Run | Jun Mat Mat Sto Turns Passed 2465 | 123 1184 436 722 Spaces Moved 1030 | 61 538 157 274 Core 30 | 16 . 3 11 Treads 915 | 45 538 154 178 Legs . | . . . . Wheels 85 | . . . 85 Hover . | . . . . Flight . | . . . . Fastest Speed 50 | 50 160 160 110 Average Speed 180 | 131 161 220 205 Slowest Speed 400 | 160 240 250 400 Overloaded Moves . | . . . . Propulsion Burnouts . | . . . . Robots Hopped . | . . . . Cave-ins Triggered . | . . . . Exploration Rate (%) 30 | 5 59 19 37 Regions Visited 3 Branch Regions 1 Pre-discovered Areas . | . . . . Known Exits Taken . | . . . . Unknown Exits Taken 3 | 1 1 1 . Scrap Searched . | . . . . Spaces Dug . | . . . . Terrain Destroyed 215 | . 44 106 65 Melee . | . . . . Projectile . | . . . . AOE 215 | . 44 106 65 Terrain Rammed . | . . . . Walls Destroyed . | . . . . Machines Disabled . | . . . . Actions | -11 -10 -9 -9 --------- Run | Jun Mat Mat Sto Total 1502 | 91 793 219 399 Wait 281 | 5 186 19 71 Move 1027 | 60 537 156 274 Hop . | . . . . Pick Up 47 | 11 19 9 8 Fast Attach . | . . . . Attach 27 | 7 5 12 3 Detach 3 | . 1 1 1 Swap 2 | . 1 1 . Drop 11 | 1 6 3 1 Fire 93 | 7 33 18 35 Melee . | . . . . Ram . | . . . . Kick . | . . . . Crush 5 | . 5 . . Escape Stasis . | . . . . Rewire 6 | . . . 6 Trap . | . . . . Miscellaneous . | . . . . Route ------- -11/Junkyard -10/Materials (discovered 2 exits: *Mat / *Min) -9/Materials -9/Storage History --------- Turn | Location | Event 38 | -11/Junkyard | Discovered new exit (range 16) 124 | -11/Junkyard | Entered Materials 315 | -10/Materials | Build established: Mutant 452 | -10/Materials | Discovered new exit (range 13) 896 | -10/Materials | Lost 3 parts (1n1u1w) 1070 | -10/Materials | Identified exit to Mines 1188 | -10/Materials | Discovered new exit (range 14) 1308 | -10/Materials | Entered another Materials area 1308 | -9/Materials | Evolved 2 slots: Utility x2 1316 | -9/Materials | Discovered new exit (range 8) 1435 | -9/Materials | Core integrity fell below 50% 1461 | -9/Materials | Destroyed 7 combat bots 1461 | -9/Materials | Lost 6 parts (1p1n2u2w) 1556 | -9/Materials | Lost 3 parts (1p2u) 1697 | -9/Materials | Core integrity fell below 20% 1744 | -9/Materials | Entered Storage 2466 | -9/Storage | Destroyed by G-34 Mercenary with Small Laser Last Messages --------------- K-01 Serf collects debris. U-05 Engineer lays Concrete. U-05 Engineer builds a Wall. U-05 Engineer lays Concrete. K-01 Serf collects debris. U-05 Engineer builds a Wall. Acquired 26 matter. Acquired Utility Shielding. U-05 Engineer lays Concrete. U-05 Engineer builds a Wall. The unstable cave ceiling collapses. U-05 Engineer lays Concrete. U-05 Engineer builds a Wall. K FUL0QC= %DN&U4LDEY U-05 Engineer builds a Wall. U-05 Engineer lays Concrete. U-05 Engineer builds a Wall. U-05 Engineer lays Concrete. Lgt. Armor Plating destroyed. G-47 Trooper destroyed. Map ----- +----------------------------------------------------+ | ?????????????????????????????????????????????????? | | ?????????????????????????????????????????????????? | | ?????????????????????????????????????????????????? | | ?????????????????????????????????????????????????? | | ?????????????????????????????????????????????????? | | ?????????????????????????????????????????????????? | | ?????????????????????????????????????????????????? | | ?????????????????????????????????????????????????? | | ?????????????????????????????????????????????????? | | ?????????????????????????????????????????????????? | | ?????????????????????????????????????????????????? | | ?????????????????????????????????????????????????? | | ?????????????????????????????????????????????????? | | ?????????????????????????????????????????????????? | | ?????????????????????????????????????????????????? | | ?????????????????????????????????????????????????? | | ?????????????????????????????????????????????????? | | ?????????????????????????????????????????????????? | | ???????????????????????????????? #?Y"????????????? | | ???????????????????????????????# """#???????????? | | ???????????????????????????????# ##??????????? | | ????????????????????????????### #??????????? | | ????????????###########?#### ####????????? | | ????????????# #?# gg#????????? | | ????????????# "" !! #?# gg#????????? | | ????????????# "Y !! ##@ % gg#????????? | | ?????????? # "" %! ##g### gg#????????? | | ????????? + # ##Tgg#????????? | | ????????????# # # #?????????????? | | ????????????# # " # ##########????? | | ????????????# # ""/ # # #????? | | ????????????########## [""[" + #! ! #????? | | ?????????????????????## "%""!" # # #????? | | ??????????????????????# " """" # # #????? | | ??????????????????????# """ + + #????? | | ??????????????????????# # #| #????? | | ?????????????????????########### # #????? | | ?????????????????????# ## # #????? | | #????????????????????# ## # #????? | | #????????????????????# ## #######+#????? | | #???????????########## # ##?????# #????? | | +???????????# # #??????# #????? | | #???????????# """" ##+##+##### # #### ##???? | | #???????????# "??" # % #???? | | #???????????# "??" + * +???? | | #???????????# "??" # ! #???? | | #???????????# "??" ###+##### # ######### #???? | | #???????????# """" ## # #????????+#???? | | ###?????????# ## """" # #?????????????? | | = #?????????# ## ""??" # #?????????????? | +----------------------------------------------------+ Best States ------------- Heat Dissipation 38 Energy Generation 14 Energy Capacity 250 Matter Stores 300 Matter Capacity 300 Sight Range 18 Terrain Scan Range 14 Terrain Scan Density 10 ECM Strength 1 Armor Coverage 150 Propulsion Shielding 33 Evasion (%) 50 Recoil Reduction 2 Item Schematics ----------------- None Robot Schematics ------------------ None Fabricated ------------ Nothing Alien Tech Used ----------------- None Achievements -------------- None Challenges ------------ None Game ------ Seed ShieldSpectralDoublenader Manual? 0 Play Time 00:38:49 Cumulative 11.1 hours Start 2023.08.02 @ 23:32:54 End 2023.08.03 @ 10:38:57 Sessions 4 Manual Loads 0 Difficulty Rogue Special Mode None Game No. 9 Rogue 5 Adventurer 4 Explorer 0 Win Type - Total 0 Types 0/0/0/0/0/0/0/0/0 Lore% 4 Gallery% 18 Achievement% 17 Wizard Run 0 Options --------- ASCII 0 Keyboard 1 Movement Numpad Keybinds 0 Fullscreen 2 Font 18/Terminus Map View 76x50 Tactical HUD 0 Map Filters NONE Filters NONE Steam 1 RUN: 6e848e70-7917-4314-95ac-c724eb1c0fb5